[Event "*** Titled Tuesday Blitz"]
[Site "Chess.com"]
[Date "2020.12.01"]
[Round "9"]
[White "bascheyaro"]
[Black "Mikhail_Golubev"]
[Result "1-0"]
[WhiteElo "2741"]
[BlackElo "2572"]
[TimeControl "180+1"]
[EndTime "11:44:28 PST"]
[Termination "bascheyaro won on time"]

1. d4 {[%clk 0:03:00.9]} 1... Nf6 {[%clk 0:02:57.8]} 2. Nf3 {[%clk 0:03:00.7]}
2... g6 {[%clk 0:02:52.9]} 3. Bf4 {[%clk 0:03:00.2]} 3... Bg7 {[%clk 0:02:53.2]}
4. e3 {[%clk 0:03:00.2]} 4... O-O {[%clk 0:02:49.4]} 5. Be2 {[%clk 0:03:00.4]}
5... d6 {[%clk 0:02:43.8]} 6. O-O {[%clk 0:03:00.3]} 6... Re8 {[%clk 0:02:42.8]}
7. h3 {[%clk 0:02:59.6]} 7... Nc6 {[%clk 0:02:40.2]} 8. Nc3 {[%clk 0:02:59.1]}
8... a6 {[%clk 0:02:27.9]} 9. d5 {[%clk 0:02:57.4]} 9... e5 {[%clk 0:02:22.7]}
10. dxc6 {[%clk 0:02:38]} 10... exf4 {[%clk 0:02:21.7]} 11. cxb7 {[%clk
0:02:38.4]} 11... Bxb7 {[%clk 0:02:22.4]} 12. exf4 {[%clk 0:02:39]} 12... Ne4
{[%clk 0:02:13.7]} 13. Nxe4 {[%clk 0:02:36.1]} 13... Rxe4 {[%clk 0:02:10.2]} 14.
Qd2 {[%clk 0:02:27]} 14... Bxb2 {[%clk 0:01:53.9]} 15. Rab1 {[%clk 0:02:25.1]}
15... Qf6 {[%clk 0:01:53.5]} 16. Bd3 {[%clk 0:01:47.9]} 16... Bc3 {[%clk
0:01:15.3]} 17. Bxe4 {[%clk 0:01:47.5]} 17... Bxd2 {[%clk 0:01:07.8]} 18. Bxb7
{[%clk 0:01:47.9]} 18... Re8 {[%clk 0:00:59.3]} 19. Nxd2 {[%clk 0:01:46.4]}
19... Qxf4 {[%clk 0:00:59.7]} 20. Nf3 {[%clk 0:01:41.7]} 20... Qa4 {[%clk
0:00:57.2]} 21. Bd5 {[%clk 0:01:32.4]} 21... Qxc2 {[%clk 0:00:46.5]} 22. Rbc1
{[%clk 0:01:29.4]} 22... Qf5 {[%clk 0:00:41.8]} 23. Rfd1 {[%clk 0:01:29.8]}
23... Re7 {[%clk 0:00:37.4]} 24. Bb3 {[%clk 0:01:20.6]} 24... a5 {[%clk
0:00:34.7]} 25. Rd5 {[%clk 0:01:19.4]} 25... Qf4 {[%clk 0:00:32.5]} 26. Rc4
{[%clk 0:01:19.1]} 26... Qf6 {[%clk 0:00:32.2]} 27. Rxa5 {[%clk 0:01:16.5]}
27... Qa1+ {[%clk 0:00:31.3]} 28. Kh2 {[%clk 0:01:16.4]} 28... c5 {[%clk
0:00:25.8]} 29. Rf4 {[%clk 0:00:59.1]} 29... Qc1 {[%clk 0:00:23.2]} 30. Kg3
{[%clk 0:00:58.9]} 30... Qc3 {[%clk 0:00:21.2]} 31. Raa4 {[%clk 0:00:49]} 31...
Kg7 {[%clk 0:00:20.2]} 32. Rac4 {[%clk 0:00:43.7]} 32... Qb2 {[%clk 0:00:20]}
33. Rce4 {[%clk 0:00:41.8]} 33... Rxe4 {[%clk 0:00:14.7]} 34. Rxe4 {[%clk
0:00:42.7]} 34... Qc1 {[%clk 0:00:13.7]} 35. Kh2 {[%clk 0:00:33.2]} 35... Qc3
{[%clk 0:00:12.4]} 36. Kg1 {[%clk 0:00:30.3]} 36... Qc1+ {[%clk 0:00:11.9]} 37.
Re1 {[%clk 0:00:30.5]} 37... Qc3 {[%clk 0:00:12.3]} 38. Re4 {[%clk 0:00:25.2]}
38... Qc1+ {[%clk 0:00:12]} 39. Kh2 {[%clk 0:00:25.7]} 39... Qc3 {[%clk
0:00:12]} 40. h4 {[%clk 0:00:25]} 40... h6 {[%clk 0:00:10.9]} 41. Rf4 {[%clk
0:00:20.3]} 41... f6 {[%clk 0:00:10.1]} 42. Rc4 {[%clk 0:00:20]} 42... Qb2
{[%clk 0:00:08.3]} 43. Kg3 {[%clk 0:00:20.1]} 43... Qa1 {[%clk 0:00:05.7]} 44.
Re4 {[%clk 0:00:19.7]} 44... Kf8 {[%clk 0:00:05.3]} 45. Re6 {[%clk 0:00:18.2]}
45... Qc3 {[%clk 0:00:03.7]} 46. Rxd6 {[%clk 0:00:16.6]} 46... c4 {[%clk
0:00:04]} 47. Rc6 {[%clk 0:00:17.1]} 47... Qd3 {[%clk 0:00:02.7]} 48. Rxc4
{[%clk 0:00:17.2]} 48... Qd6+ {[%clk 0:00:03.2]} 49. Kh3 {[%clk 0:00:17.7]}
49... g5 {[%clk 0:00:02.5]} 50. hxg5 {[%clk 0:00:17.8]} 50... hxg5 {[%clk
0:00:02.1]} 51. g3 {[%clk 0:00:15.9]} 1-0

[Event "*** Titled Tuesday Blitz"]
[Site "Chess.com"]
[Date "2020.12.01"]
[Round "9"]
[White "profofchess"]
[Black "Gudmundur_Kjartansson"]
[Result "0-1"]
[WhiteElo "2429"]
[BlackElo "2563"]
[TimeControl "180+1"]
[EndTime "11:44:28 PST"]
[Termination "Gudmundur_Kjartansson won on time"]

1. e4 {[%clk 0:03:00.9]} 1... c5 {[%clk 0:02:59.5]} 2. Nf3 {[%clk 0:03:00.8]}
2... d6 {[%clk 0:02:58.9]} 3. c3 {[%clk 0:03:00.8]} 3... Nf6 {[%clk 0:02:58]} 4.
Bc4 {[%clk 0:03:01.2]} 4... Nxe4 {[%clk 0:02:49.7]} 5. Qa4+ {[%clk 0:03:00.3]}
5... Nc6 {[%clk 0:02:43]} 6. Bxf7+ {[%clk 0:03:01.2]} 6... Kxf7 {[%clk
0:02:43.2]} 7. Qxe4 {[%clk 0:03:01.9]} 7... d5 {[%clk 0:02:29.2]} 8. Qf4+ {[%clk
0:02:53.7]} 8... Kg8 {[%clk 0:02:27.5]} 9. O-O {[%clk 0:02:36.8]} 9... e6 {[%clk
0:02:19.1]} 10. d4 {[%clk 0:02:26.8]} 10... Bd6 {[%clk 0:02:18.4]} 11. Qe3
{[%clk 0:02:20.6]} 11... b6 {[%clk 0:02:11.5]} 12. Na3 {[%clk 0:02:10.4]} 12...
Bd7 {[%clk 0:02:01.6]} 13. Re1 {[%clk 0:02:04.8]} 13... a6 {[%clk 0:01:40.8]}
14. Ne5 {[%clk 0:01:36.2]} 14... Nxe5 {[%clk 0:01:15.8]} 15. dxe5 {[%clk
0:01:37.1]} 15... Be7 {[%clk 0:01:15.7]} 16. Nc2 {[%clk 0:01:09.8]} 16... Qe8
{[%clk 0:00:56.6]} 17. Qg3 {[%clk 0:00:56.2]} 17... h6 {[%clk 0:00:44.9]} 18.
Qg4 {[%clk 0:00:39.2]} 18... Kh7 {[%clk 0:00:42.6]} 19. Ne3 {[%clk 0:00:39.3]}
19... Qg6 {[%clk 0:00:41.9]} 20. f4 {[%clk 0:00:22.1]} 20... Qxg4 {[%clk
0:00:38.8]} 21. Nxg4 {[%clk 0:00:23]} 21... h5 {[%clk 0:00:38.6]} 22. Nf2 {[%clk
0:00:19.9]} 22... b5 {[%clk 0:00:29.9]} 23. Be3 {[%clk 0:00:19.8]} 23... a5
{[%clk 0:00:26.5]} 24. Nd3 {[%clk 0:00:19.1]} 24... Rhc8 {[%clk 0:00:24.8]} 25.
Rac1 {[%clk 0:00:18.7]} 25... Be8 {[%clk 0:00:24.1]} 26. Nf2 {[%clk 0:00:16.1]}
26... Bg6 {[%clk 0:00:22.5]} 27. Nh3 {[%clk 0:00:15.2]} 27... Bf5 {[%clk
0:00:21.4]} 28. Ng5+ {[%clk 0:00:15.4]} 28... Bxg5 {[%clk 0:00:14.1]} 29. fxg5
{[%clk 0:00:16.3]} 29... b4 {[%clk 0:00:12.1]} 30. c4 {[%clk 0:00:12.9]} 30...
d4 {[%clk 0:00:09]} 31. Bd2 {[%clk 0:00:13]} 31... a4 {[%clk 0:00:08.6]} 32. Rf1
{[%clk 0:00:12]} 32... Kg6 {[%clk 0:00:08.3]} 33. h4 {[%clk 0:00:10.1]} 33...
Rf8 {[%clk 0:00:03.7]} 34. Rf3 {[%clk 0:00:08.9]} 34... Be4 {[%clk 0:00:03.8]}
35. Rxf8 {[%clk 0:00:07.5]} 35... Rxf8 {[%clk 0:00:04.4]} 36. Rf1 {[%clk
0:00:05]} 36... Rxf1+ {[%clk 0:00:03.9]} 37. Kxf1 {[%clk 0:00:05.2]} 37... Bd3+
{[%clk 0:00:04.6]} 38. Kf2 {[%clk 0:00:05.8]} 38... Bxc4 {[%clk 0:00:04.9]} 39.
a3 {[%clk 0:00:06.1]} 39... bxa3 {[%clk 0:00:02.8]} 40. bxa3 {[%clk 0:00:06.6]}
40... Kf5 {[%clk 0:00:03.2]} 41. Ba5 {[%clk 0:00:03.2]} 41... Kxe5 {[%clk
0:00:03.6]} 42. g6 {[%clk 0:00:01.8]} 42... Bd3 {[%clk 0:00:02.7]} 43. Bb6
{[%clk 0:00:01.6]} 43... Kd5 {[%clk 0:00:03]} 44. g4 {[%clk 0:00:01.3]} 44...
Bxg6 {[%clk 0:00:02]} 45. gxh5 {[%clk 0:00:01.5]} 45... Bxh5 {[%clk 0:00:02.4]}
46. Kg3 {[%clk 0:00:01.8]} 46... c4 {[%clk 0:00:01.2]} 47. Kf4 {[%clk
0:00:01.8]} 47... c3 {[%clk 0:00:01.8]} 48. Ba5 {[%clk 0:00:01.3]} 48... c2
{[%clk 0:00:01.9]} 0-1

[Event "*** Titled Tuesday Blitz"]
[Site "Chess.com"]
[Date "2020.12.01"]
[Round "9"]
[White "SlavenPastar"]
[Black "StockholmMissile"]
[Result "0-1"]
[WhiteElo "2500"]
[BlackElo "2397"]
[TimeControl "180+1"]
[EndTime "11:44:28 PST"]
[Termination "StockholmMissile won on time"]

1. b3 {[%clk 0:03:00.9]} 1... e5 {[%clk 0:02:59]} 2. Bb2 {[%clk 0:03:01.8]} 2...
Nc6 {[%clk 0:02:59.5]} 3. Nf3 {[%clk 0:03:01.8]} 3... e4 {[%clk 0:02:55.1]} 4.
Nd4 {[%clk 0:03:01.4]} 4... Nxd4 {[%clk 0:02:55.1]} 5. Bxd4 {[%clk 0:03:02.3]}
5... Nf6 {[%clk 0:02:54.7]} 6. e3 {[%clk 0:03:00.6]} 6... d5 {[%clk 0:02:47.1]}
7. c4 {[%clk 0:03:00]} 7... c5 {[%clk 0:02:45.1]} 8. Bxf6 {[%clk 0:02:50.5]}
8... Qxf6 {[%clk 0:02:29.1]} 9. Nc3 {[%clk 0:02:50]} 9... dxc4 {[%clk
0:02:28.9]} 10. Bxc4 {[%clk 0:02:46.3]} 10... Qg6 {[%clk 0:02:25.7]} 11. Qc2
{[%clk 0:02:34.3]} 11... Bf5 {[%clk 0:02:01.1]} 12. Bb5+ {[%clk 0:02:30.9]}
12... Kd8 {[%clk 0:01:54.2]} 13. O-O-O {[%clk 0:02:23.9]} 13... a6 {[%clk
0:01:49.6]} 14. Be2 {[%clk 0:02:19.9]} 14... Kc7 {[%clk 0:00:56.5]} 15. Nd5+
{[%clk 0:02:10.2]} 15... Kb8 {[%clk 0:00:54.4]} 16. Nb6 {[%clk 0:01:58.8]} 16...
Qxb6 {[%clk 0:00:52.4]} 17. g4 {[%clk 0:01:57.5]} 17... Bg6 {[%clk 0:00:51.6]}
18. h4 {[%clk 0:01:57.5]} 18... h5 {[%clk 0:00:43.5]} 19. gxh5 {[%clk
0:01:57.2]} 19... Bxh5 {[%clk 0:00:43.8]} 20. Bxh5 {[%clk 0:01:53.1]} 20... Rxh5
{[%clk 0:00:44.7]} 21. Qxe4 {[%clk 0:01:53.5]} 21... Ka7 {[%clk 0:00:44.2]} 22.
Kb1 {[%clk 0:01:46.1]} 22... Qe6 {[%clk 0:00:40.2]} 23. Qc2 {[%clk 0:01:37.2]}
23... Re8 {[%clk 0:00:34.2]} 24. d3 {[%clk 0:01:32.3]} 24... Rd8 {[%clk
0:00:31]} 25. Rhg1 {[%clk 0:01:28.6]} 25... g6 {[%clk 0:00:31]} 26. Rh1 {[%clk
0:01:12.9]} 26... Bg7 {[%clk 0:00:29.6]} 27. Kc1 {[%clk 0:01:06.4]} 27... Qf6
{[%clk 0:00:27]} 28. Kd2 {[%clk 0:01:04.3]} 28... Qxf2+ {[%clk 0:00:25.7]} 29.
Kc1 {[%clk 0:01:02.2]} 29... Qxe3+ {[%clk 0:00:24.9]} 30. Kb1 {[%clk 0:01:01.8]}
30... Qd4 {[%clk 0:00:23.4]} 31. Kc1 {[%clk 0:01:01.5]} 31... Rxh4 {[%clk
0:00:19.1]} 32. Rxh4 {[%clk 0:01:00.3]} 32... Qxh4 {[%clk 0:00:18.9]} 33. Qxc5+
{[%clk 0:01:00.3]} 33... Ka8 {[%clk 0:00:19.1]} 34. Qc7 {[%clk 0:00:39.7]} 34...
Qg5+ {[%clk 0:00:16.8]} 35. Kc2 {[%clk 0:00:32.6]} 35... Qd5 {[%clk 0:00:16.8]}
36. Rd2 {[%clk 0:00:12.7]} 36... Be5 {[%clk 0:00:15.3]} 37. Qc4 {[%clk
0:00:09.8]} 37... Qxc4+ {[%clk 0:00:14.9]} 38. bxc4 {[%clk 0:00:10.7]} 38... f5
{[%clk 0:00:14.8]} 39. Re2 {[%clk 0:00:11.1]} 39... Bb8 {[%clk 0:00:14]} 40. Re6
{[%clk 0:00:10.8]} 40... Rg8 {[%clk 0:00:14.1]} 41. Rf6 {[%clk 0:00:09.4]} 41...
f4 {[%clk 0:00:14.2]} 42. Kd2 {[%clk 0:00:05.8]} 42... g5 {[%clk 0:00:14.2]} 43.
Ke2 {[%clk 0:00:05.5]} 43... g4 {[%clk 0:00:14.5]} 44. Kf2 {[%clk 0:00:05.6]}
44... g3+ {[%clk 0:00:14.4]} 45. Kg2 {[%clk 0:00:03.8]} 45... Rh8 {[%clk
0:00:14.3]} 46. d4 {[%clk 0:00:03.8]} 46... Rh2+ {[%clk 0:00:13.9]} 47. Kg1
{[%clk 0:00:04.1]} 47... Rd2 {[%clk 0:00:12.7]} 48. d5 {[%clk 0:00:03.8]} 48...
Rd3 {[%clk 0:00:11.5]} 49. Rf8 {[%clk 0:00:01.8]} 49... f3 {[%clk 0:00:10.1]}
0-1

[Event "*** Titled Tuesday Blitz"]
[Site "Chess.com"]
[Date "2020.12.01"]
[Round "9"]
[White "anon481216"]
[Black "Semetey"]
[Result "0-1"]
[WhiteElo "2412"]
[BlackElo "2585"]
[TimeControl "180+1"]
[EndTime "11:44:28 PST"]
[Termination "Semetey won on time"]

1. d4 {[%clk 0:03:00.9]} 1... Nf6 {[%clk 0:02:59.7]} 2. c4 {[%clk 0:03:00.7]}
2... g6 {[%clk 0:03:00.6]} 3. Nc3 {[%clk 0:02:59.4]} 3... d5 {[%clk 0:02:56.5]}
4. Bg5 {[%clk 0:02:58.7]} 4... dxc4 {[%clk 0:02:42.5]} 5. e4 {[%clk 0:02:56.3]}
5... c5 {[%clk 0:02:33.8]} 6. d5 {[%clk 0:02:51.2]} 6... Bg7 {[%clk 0:02:30.6]}
7. Bxc4 {[%clk 0:02:49.8]} 7... O-O {[%clk 0:02:30.5]} 8. Nf3 {[%clk 0:02:40]}
8... Bg4 {[%clk 0:02:26]} 9. O-O {[%clk 0:02:39.4]} 9... Nbd7 {[%clk 0:02:25.5]}
10. h3 {[%clk 0:02:34.7]} 10... Bxf3 {[%clk 0:02:25.6]} 11. Qxf3 {[%clk
0:02:34.6]} 11... Ne5 {[%clk 0:02:26.1]} 12. Qe2 {[%clk 0:02:34.5]} 12... Nxc4
{[%clk 0:02:16.1]} 13. Qxc4 {[%clk 0:02:34.1]} 13... Rc8 {[%clk 0:02:14.4]} 14.
a4 {[%clk 0:02:30.9]} 14... Qb6 {[%clk 0:02:12.2]} 15. Qb5 {[%clk 0:02:27.4]}
15... Rfd8 {[%clk 0:02:09.7]} 16. Rfd1 {[%clk 0:02:11.5]} 16... h6 {[%clk
0:02:00.2]} 17. Bf4 {[%clk 0:02:05.3]} 17... Nd7 {[%clk 0:01:55.8]} 18. Bh2
{[%clk 0:01:50.8]} 18... a6 {[%clk 0:01:54.4]} 19. Qe2 {[%clk 0:01:40.3]} 19...
c4 {[%clk 0:01:53.3]} 20. a5 {[%clk 0:01:36]} 20... Qa7 {[%clk 0:01:38.8]} 21.
Ra4 {[%clk 0:01:34.1]} 21... Qc5 {[%clk 0:01:14.6]} 22. e5 {[%clk 0:01:29.1]}
22... b5 {[%clk 0:01:02.2]} 23. axb6 {[%clk 0:01:22]} 23... Nxb6 {[%clk
0:01:02.2]} 24. Rxa6 {[%clk 0:01:21.4]} 24... Nxd5 {[%clk 0:01:02.3]} 25. Ne4
{[%clk 0:01:07.4]} 25... Qb5 {[%clk 0:00:54.3]} 26. Raa1 {[%clk 0:00:47.6]}
26... Nb4 {[%clk 0:00:48.7]} 27. b3 {[%clk 0:00:30]} 27... Bxe5 {[%clk
0:00:16.3]} 28. Bxe5 {[%clk 0:00:29.1]} 28... Qxe5 {[%clk 0:00:17.2]} 29. bxc4
{[%clk 0:00:29.2]} 29... f5 {[%clk 0:00:15.6]} 30. Ng3 {[%clk 0:00:24]} 30...
Qxe2 {[%clk 0:00:15.3]} 31. Rxd8+ {[%clk 0:00:23.2]} 31... Rxd8 {[%clk
0:00:13.8]} 32. Nxe2 {[%clk 0:00:23.8]} 32... Rc8 {[%clk 0:00:13.3]} 33. Rc1
{[%clk 0:00:22.5]} 33... e5 {[%clk 0:00:10.9]} 34. f3 {[%clk 0:00:20.1]} 34...
Kf7 {[%clk 0:00:11]} 35. c5 {[%clk 0:00:14.2]} 35... Nd3 {[%clk 0:00:10.7]} 36.
Rd1 {[%clk 0:00:09.6]} 36... Nxc5 {[%clk 0:00:09.9]} 37. Rd6 {[%clk 0:00:09.6]}
37... Re8 {[%clk 0:00:07.9]} 38. Nc3 {[%clk 0:00:07.9]} 38... Re6 {[%clk
0:00:07.3]} 39. Rd8 {[%clk 0:00:07.3]} 39... Rc6 {[%clk 0:00:05.8]} 40. Nd5
{[%clk 0:00:06.2]} 40... h5 {[%clk 0:00:05.4]} 41. Rh8 {[%clk 0:00:04.9]} 41...
Kg7 {[%clk 0:00:05]} 42. Re8 {[%clk 0:00:03.8]} 42... e4 {[%clk 0:00:05.4]} 43.
fxe4 {[%clk 0:00:03.4]} 43... Nxe4 {[%clk 0:00:04.9]} 44. Nf4 {[%clk 0:00:02.3]}
44... Rc1+ {[%clk 0:00:03.8]} 45. Kh2 {[%clk 0:00:02.2]} 45... h4 {[%clk
0:00:03.6]} 0-1

[Event "*** Titled Tuesday Blitz"]
[Site "Chess.com"]
[Date "2020.12.01"]
[Round "9"]
[White "Luklei18"]
[Black "BJthechessgod"]
[Result "1-0"]
[WhiteElo "2424"]
[BlackElo "2288"]
[TimeControl "180+1"]
[EndTime "11:44:28 PST"]
[Termination "Luklei18 won by resignation"]

1. e4 {[%clk 0:03:00.3]} 1... c5 {[%clk 0:02:40.4]} 2. Nf3 {[%clk 0:02:56.3]}
2... Nc6 {[%clk 0:02:40.1]} 3. d4 {[%clk 0:02:55.6]} 3... cxd4 {[%clk
0:02:40.3]} 4. Nxd4 {[%clk 0:02:56.5]} 4... g6 {[%clk 0:02:40.6]} 5. c4 {[%clk
0:02:14.3]} 5... Nf6 {[%clk 0:02:40.3]} 6. Nc3 {[%clk 0:02:13.9]} 6... d6 {[%clk
0:02:40.6]} 7. Be3 {[%clk 0:02:13.2]} 7... Ng4 {[%clk 0:02:40.8]} 8. Nxc6 {[%clk
0:01:58]} 8... Nxe3 {[%clk 0:02:18.1]} 9. Nxd8 {[%clk 0:01:51.3]} 9... Nxd1
{[%clk 0:02:17.9]} 10. Rxd1 {[%clk 0:01:43.8]} 10... Kxd8 {[%clk 0:02:07.5]} 11.
c5 {[%clk 0:01:42.6]} 11... Be6 {[%clk 0:01:41.8]} 12. cxd6 {[%clk 0:01:38.7]}
12... exd6 {[%clk 0:01:40.4]} 13. e5 {[%clk 0:01:27.2]} 13... Rc8 {[%clk
0:01:18.8]} 14. g3 {[%clk 0:01:19.8]} 14... a6 {[%clk 0:01:04.3]} 15. Bg2 {[%clk
0:01:19.5]} 15... Kc7 {[%clk 0:01:04.4]} 16. exd6+ {[%clk 0:01:10.8]} 16... Bxd6
{[%clk 0:01:04.3]} 17. Bxb7 {[%clk 0:01:09.8]} 17... Rhe8 {[%clk 0:00:54.7]} 18.
Bxc8 {[%clk 0:00:49.7]} 18... Bd5+ {[%clk 0:00:48.5]} 19. Kd2 {[%clk 0:00:49.8]}
19... Bxh1 {[%clk 0:00:48.4]} 20. Rxh1 {[%clk 0:00:46.2]} 20... Kxc8 {[%clk
0:00:48.3]} 21. Re1 {[%clk 0:00:46.8]} 21... Rd8 {[%clk 0:00:47.8]} 22. Kc2
{[%clk 0:00:45.8]} 22... Kd7 {[%clk 0:00:47.1]} 23. Rd1 {[%clk 0:00:45]} 23...
Ke6 {[%clk 0:00:46.9]} 24. Rd5 {[%clk 0:00:40.9]} 24... Rc8 {[%clk 0:00:45.7]}
25. Ra5 {[%clk 0:00:39.6]} 25... Rc6 {[%clk 0:00:45.7]} 26. Kd3 {[%clk
0:00:39.6]} 26... Bc7 {[%clk 0:00:45.9]} 27. Ra4 {[%clk 0:00:38.1]} 27... f5
{[%clk 0:00:44.4]} 28. Rc4 {[%clk 0:00:38]} 28... Rd6+ {[%clk 0:00:44.1]} 29.
Ke2 {[%clk 0:00:37.1]} 29... Bb6 {[%clk 0:00:43]} 30. Rc8 {[%clk 0:00:34.6]}
30... Bd8 {[%clk 0:00:36.1]} 31. Na4 {[%clk 0:00:31.4]} 31... Bg5 {[%clk
0:00:33.4]} 32. f4 {[%clk 0:00:30.8]} 32... Bf6 {[%clk 0:00:31]} 33. Rc7 {[%clk
0:00:25.6]} 33... h5 {[%clk 0:00:26.3]} 34. b3 {[%clk 0:00:23.2]} 34... Kd5
{[%clk 0:00:24.2]} 35. Rb7 {[%clk 0:00:21.7]} 35... Ke4 {[%clk 0:00:20.2]} 36.
Rb6 {[%clk 0:00:22]} 36... Rxb6 {[%clk 0:00:16.1]} 37. Nxb6 {[%clk 0:00:22.9]}
37... Bd4 {[%clk 0:00:16.6]} 38. Nc4 {[%clk 0:00:20.1]} 38... Bg1 {[%clk
0:00:17.2]} 39. Nd2+ {[%clk 0:00:16.3]} 39... Kd5 {[%clk 0:00:16.3]} 40. Nf3
{[%clk 0:00:17.1]} 40... Bc5 {[%clk 0:00:16.2]} 41. Kd3 {[%clk 0:00:17.7]} 41...
Bd6 {[%clk 0:00:15.8]} 42. Kc3 {[%clk 0:00:16.4]} 42... Kc5 {[%clk 0:00:15.7]}
43. b4+ {[%clk 0:00:16.7]} 43... Kb5 {[%clk 0:00:15.9]} 44. Nd4+ {[%clk
0:00:17.3]} 44... Ka4 {[%clk 0:00:15.6]} 45. Nc2 {[%clk 0:00:15.5]} 45... Bc7
{[%clk 0:00:14]} 46. Nd4 {[%clk 0:00:07.5]} 46... Bd6 {[%clk 0:00:10]} 47. Nc6
{[%clk 0:00:07.9]} 47... Kb5 {[%clk 0:00:07.7]} 48. Ne5 {[%clk 0:00:08.3]} 48...
g5 {[%clk 0:00:05.8]} 49. Nf7 {[%clk 0:00:04.9]} 49... gxf4 {[%clk 0:00:05.8]}
50. Nxd6+ {[%clk 0:00:05.3]} 50... Kc6 {[%clk 0:00:05.9]} 51. Nxf5 {[%clk
0:00:06.2]} 51... f3 {[%clk 0:00:05.7]} 52. Ne3 {[%clk 0:00:06.6]} 52... f2
{[%clk 0:00:04.7]} 53. Nf1 {[%clk 0:00:07.5]} 1-0

[Event "*** Titled Tuesday Blitz"]
[Site "Chess.com"]
[Date "2020.12.01"]
[Round "9"]
[White "Trickov"]
[Black "TrenerChos"]
[Result "0-1"]
[WhiteElo "2330"]
[BlackElo "2204"]
[TimeControl "180+1"]
[EndTime "11:44:28 PST"]
[Termination "TrenerChos won on time"]

1. d4 {[%clk 0:02:59]} 1... c5 {[%clk 0:03:00.5]} 2. c4 {[%clk 0:02:57.6]} 2...
cxd4 {[%clk 0:02:58.2]} 3. Qxd4 {[%clk 0:02:55.8]} 3... Nc6 {[%clk 0:02:59.1]}
4. Qd1 {[%clk 0:02:49.5]} 4... Nf6 {[%clk 0:02:57.9]} 5. Nc3 {[%clk 0:02:49.5]}
5... e6 {[%clk 0:02:56.7]} 6. Nf3 {[%clk 0:02:49.6]} 6... Be7 {[%clk 0:02:56.2]}
7. g3 {[%clk 0:02:49.4]} 7... a6 {[%clk 0:02:55.8]} 8. Bg2 {[%clk 0:02:48.4]}
8... O-O {[%clk 0:02:55.9]} 9. O-O {[%clk 0:02:47.7]} 9... d5 {[%clk 0:02:55.2]}
10. cxd5 {[%clk 0:02:46.2]} 10... exd5 {[%clk 0:02:55.3]} 11. Nd4 {[%clk
0:02:38.4]} 11... Be6 {[%clk 0:02:51.7]} 12. h3 {[%clk 0:02:31.7]} 12... Bc5
{[%clk 0:02:49.5]} 13. Nb3 {[%clk 0:02:27.8]} 13... Ba7 {[%clk 0:02:47.8]} 14.
Bg5 {[%clk 0:02:27.1]} 14... h6 {[%clk 0:02:38.9]} 15. Bxf6 {[%clk 0:02:18.2]}
15... Qxf6 {[%clk 0:02:39]} 16. Nxd5 {[%clk 0:02:15.4]} 16... Qxb2 {[%clk
0:02:32.4]} 17. Nc7 {[%clk 0:01:50.2]} 17... Rad8 {[%clk 0:02:28.6]} 18. Qc1
{[%clk 0:01:46.6]} 18... Qxe2 {[%clk 0:02:19.1]} 19. Nc5 {[%clk 0:01:10]} 19...
Bxc5 {[%clk 0:02:05.1]} 20. Qxc5 {[%clk 0:01:08.4]} 20... Qc4 {[%clk 0:01:59.9]}
21. Qb6 {[%clk 0:00:49.7]} 21... Qb4 {[%clk 0:00:52.4]} 22. Qxb4 {[%clk
0:00:42.3]} 22... Nxb4 {[%clk 0:00:49.5]} 23. Nxe6 {[%clk 0:00:39.8]} 23... fxe6
{[%clk 0:00:48.8]} 24. Bxb7 {[%clk 0:00:39.2]} 24... Rf7 {[%clk 0:00:41.8]} 25.
Bg2 {[%clk 0:00:35.1]} 25... Rc7 {[%clk 0:00:38.6]} 26. a3 {[%clk 0:00:25.5]}
26... Nc2 {[%clk 0:00:35.2]} 27. Rac1 {[%clk 0:00:24.7]} 27... Rc4 {[%clk
0:00:25.3]} 28. Be4 {[%clk 0:00:13.2]} 28... Nxa3 {[%clk 0:00:22]} 29. Rxc4
{[%clk 0:00:09]} 29... Nxc4 {[%clk 0:00:22.7]} 30. Rc1 {[%clk 0:00:08.6]} 30...
Rd4 {[%clk 0:00:20.5]} 31. Bg2 {[%clk 0:00:05.2]} 31... a5 {[%clk 0:00:18.7]}
32. Bf1 {[%clk 0:00:05]} 32... Nd2 {[%clk 0:00:16.4]} 33. Rc8+ {[%clk
0:00:01.6]} 33... Kf7 {[%clk 0:00:10.9]} 34. Ra8 {[%clk 0:00:02.2]} 34... a4
{[%clk 0:00:08.9]} 35. Bg2 {[%clk 0:00:01.9]} 35... Kf6 {[%clk 0:00:08.2]} 36.
Bc6 {[%clk 0:00:01.8]} 36... Nb3 {[%clk 0:00:07.8]} 37. Bxa4 {[%clk 0:00:01.7]}
37... Nc5 {[%clk 0:00:07.2]} 38. Bc6 {[%clk 0:00:01.8]} 38... Rd6 {[%clk
0:00:03.6]} 0-1